bitfinex/quotes_ETHUSD_20250616
["timestamp","ask_amount","ask_price","bid_price","bid_amount"]
[1750072643717,13.59680225,2609.6,2609.1,4.65917529]
[1750072643918,19.40451501,2609.6,2609.2,3.83257335]
[1750072644214,0.89891473,2609.5,2609.1,4.65917205]
[1750072644720,5.80771276,2609.4,2609.1,4.65917205]
[1750072645025,0.89891473,2609.5,2609.3,3.83244006]
[1750072645229,0.30468022,2609.4,2609.1,0.02]
[1750072645425,0.55,2609.6,2609.1,4.63321349]
[1750072645426,0.55,2609.5,2609.1,4.63321349]
[1750072645731,10.55,2609.7,2609.1,0.8005]
[1750072645935,7.25550688,2609.7,2609.2,3.83259236]
[1750072646141,16.35771276,2609.7,2609.3,3.83244548]
[1750072646337,10.89779412,2609.6,2609.2,3.83252237]
[1750072646552,10.0,2609.5,2609.2,3.83252237]
[1750072646966,10.0,2609.5,2609.2,3.83252332]
[1750072647204,10.0,2609.5,2609.3,3.8323486]
[1750072647363,10.0,2609.7,2609.4,3.83222534]
[1750072647984,0.89806074,2609.8,2609.7,3.83176742]
[1750072648271,5.80771276,2610.1,2609.7,3.83173551]
[1750072648454,0.96388436,2610.0,2609.7,3.83173551]
[1750072648774,10.96388436,2610.0,2609.7,3.83173551]
[1750072649072,10.96388436,2610.0,2609.6,4.6455426]
[1750072649268,5.80771276,2609.9,2609.6,4.6455426]
[1750072649572,6.70580302,2609.9,2609.7,3.83183631]
[1750072649898,0.76696874,2609.9,2609.6,0.8136]
[1750072650026,10.0,2609.7,2609.6,4.64559172]
[1750072651268,0.1912,2609.6,2609.4,4.66198307]
[1750072651481,5.99891276,2609.6,2609.4,4.66208298]
[1750072651682,15.80771276,2609.6,2609.5,3.83215175]
[1750072651836,15.80771276,2609.6,2609.4,4.66203298]
[1750072652038,10.0,2609.6,2609.5,3.83215175]
[1750072653868,10.0,2609.6,2609.1,3.85272907]
[1750072653869,0.1912,2609.5,2609.3,3.83238308]
[1750072654070,5.80771276,2609.4,2609.3,3.83238308]
[1750072654430,5.80771276,2609.4,2609.1,4.61727327]
[1750072654634,0.1912,2609.2,2609.1,4.61727327]
[1750072656119,0.1912,2609.2,2609.1,3.85273925]
[1750072656120,15.99891276,2609.2,2609.1,3.85273925]
[1750072656263,10.1912,2609.2,2609.1,3.85273925]
[1750072657389,10.1912,2609.2,2609.1,0.02]
[1750072657390,12.50789128,2609.2,2609.1,0.02]
[1750072657697,18.31560404,2609.2,2609.1,3.85273925]
[1750072658086,10.1912,2609.2,2609.1,3.85273925]
[1750072658403,10.1912,2609.2,2609.1,4.66623925]
[1750072659084,16.5342,2609.2,2609.1,4.66623925]
[1750072659677,17.0842,2609.2,2609.1,3.85273925]
[1750072660067,16.5342,2609.2,2609.1,3.85273925]
[1750072660262,16.5342,2609.2,2607.0,0.51]
[1750072660263,0.7596,2609.0,2607.0,0.51]
[1750072660507,0.7596,2609.0,2606.9,0.8176]
[1750072660508,0.55,2607.8,2606.9,0.8176]
[1750072660710,10.0,2607.7,2607.6,3.83490294]
[1750072660921,6.417,2607.7,2607.3,10.46063364]
[1750072661128,5.50136266,2608.7,2607.3,10.46063364]
[1750072661129,0.7596,2608.5,2607.7,3.83476894]
[1750072661266,10.0,2608.3,2607.6,3.834944]
[1750072661622,11.71806,2608.3,2607.6,3.834944]
[1750072661802,12.61794955,2608.3,2608.0,3.8342944]
[1750072662186,0.55,2608.2,2607.3,0.8176]
[1750072662396,6.421,2608.1,2607.6,1.668]
[1750072662709,6.421,2608.1,2607.9,3.83441777]
[1750072662909,6.421,2608.1,2607.5,1.668]
[1750072662910,8.96066623,2608.1,2608.0,3.83435582]
[1750072663414,6.421,2608.1,2608.0,3.83435582]
[1750072665411,6.421,2608.1,2607.9,3.83443464]
[1750072665708,6.421,2608.1,2608.0,3.83435582]
[1750072666316,6.77442969,2608.1,2608.0,3.83435582]
[1750072666611,6.421,2608.1,2608.0,3.83435582]
[1750072666910,8.32489495,2608.1,2608.0,3.83435582]
[1750072667093,6.421,2608.1,2608.0,3.83435582]
[1750072667705,6.77442967,2608.1,2608.0,3.83435582]
[1750072668023,6.421,2608.1,2608.0,3.83435582]
[1750072668391,6.7744292,2608.1,2608.0,3.83435582]
[1750072668599,6.421,2608.1,2608.0,3.83435582]
[1750072669000,0.89988955,2608.2,2608.1,3.83420881]
[1750072669327,6.42,2608.2,2608.1,3.87254605]
[1750072669483,6.42,2608.2,2608.1,3.83420881]
[1750072670420,6.70760231,2608.7,2608.1,3.83420881]
[1750072670421,6.42,2608.3,2608.2,3.8340618]
[1750072670742,0.1912,2608.1,2608.0,3.83435582]
[1750072671684,0.1912,2608.1,2607.0,14.88678497]
[1750072671685,0.1912,2608.1,2607.2,0.7751]
[1750072671883,5.80771276,2607.8,2607.7,3.83479694]
[1750072672314,10.0,2607.9,2607.8,3.83453574]
[1750072672518,10.89988955,2607.9,2607.8,3.83453574]
[1750072673115,6.426,2607.9,2607.8,3.83464989]
[1750072673317,6.424,2607.9,2607.8,3.83464989]
[1750072673517,16.424,2607.9,2607.8,3.83464989]
[1750072673736,10.89988955,2607.9,2607.8,3.83464989]
[1750072673933,10.0,2607.9,2607.8,4.63814989]
[1750072674152,0.55,2608.4,2608.2,3.8340618]
[1750072674319,0.55,2608.4,2607.9,3.83443717]
[1750072674320,0.55,2608.4,2608.3,3.83380702]
[1750072674520,0.55,2608.4,2608.1,3.83416678]
[1750072674521,1.68162,2608.4,2608.2,3.83398622]
[1750072674744,11.68162,2608.4,2608.2,3.83398622]
[1750072674942,6.423,2608.3,2608.2,3.83398622]
[1750072675155,7.32288955,2608.3,2608.2,3.83398622]
[1750072679271,17.32288955,2608.3,2608.2,3.83398622]
[1750072680370,11.60792684,2608.3,2608.2,3.83398622]
[1750072680523,17.12103729,2608.3,2608.2,3.83398622]
[1750072680719,18.02092684,2608.3,2608.2,3.83398622]
[1750072680959,1.3668,2608.1,2607.4,0.7647]
[1750072681185,10.55,2607.9,2607.4,0.7647]
[1750072681365,8.111,2607.8,2607.7,3.83479213]
[1750072681548,6.415,2607.8,2607.7,3.83479213]
[1750072681763,0.89988955,2608.0,2607.6,3.83491568]
[1750072682061,10.8168,2608.1,2607.5,0.03834802]
[1750072682062,0.1912,2607.6,2607.5,0.03834802]
[1750072682225,6.6052,2607.6,2607.5,3.83509108]
[1750072682917,6.95963017,2607.6,2607.5,3.83509108]
[1750072683118,6.6052,2607.6,2607.5,3.83509108]
[1750072684135,7.81572,2607.6,2607.3,3.83533888]
[1750072684320,7.81572,2607.6,2606.5,2.77099658]
[1750072684321,0.1912,2607.3,2606.8,0.7733]
[1750072684524,16.417,2607.2,2607.1,3.83567949]
[1750072684722,17.31788955,2607.2,2607.1,3.83567949]
[1750072685167,17.67121199,2607.2,2607.1,3.83567949]
[1750072685371,17.67121144,2607.2,2607.1,3.83567949]
[1750072685668,17.31788955,2607.2,2607.1,3.83567949]
[1750072685971,17.67121065,2607.2,2607.1,3.83567949]
[1750072686191,17.67121049,2607.2,2607.1,3.83567949]
[1750072686333,17.67121082,2607.2,2607.1,3.83567949]
[1750072686540,17.67121099,2607.2,2607.1,3.83567949]
[1750072686736,17.31788955,2607.2,2607.1,3.83567949]
[1750072686949,0.1912,2607.1,2607.0,3.83579967]
[1750072687285,1.44439468,2607.1,2607.0,3.83579967]
[1750072687432,1.09108955,2607.1,2607.0,3.83579967]
[1750072687633,1.44439687,2607.1,2607.0,3.83579967]
[1750072687864,1.09108955,2607.1,2607.0,3.83579967]
[1750072688472,3.02795228,2607.1,2607.0,3.83579967]
[1750072688689,1.09108955,2607.1,2607.0,3.83579967]
[1750072689037,1.44439451,2607.1,2607.0,3.83579967]
[1750072689239,1.09108955,2607.1,2607.0,3.83579967]
[1750072689441,1.44439706,2607.1,2607.0,3.83579967]
[1750072689636,1.44439492,2607.1,2607.0,3.83579967]
[1750072689841,1.09108955,2607.1,2607.0,4.61049967]
[1750072690050,6.6032,2607.1,2607.0,4.61049967]
[1750072690276,7.50308955,2607.1,2607.0,4.61049967]
[1750072690460,7.8564046,2607.1,2607.0,4.61049967]
[1750072690666,6.95652811,2607.1,2607.0,4.61049967]
[1750072690870,6.6032,2607.1,2607.0,4.61049967]
[1750072691381,6.6032,2607.1,2607.0,4.6488541]
[1750072691382,0.1912,2607.1,2607.0,4.6488541]
[1750072692908,0.1912,2607.1,2607.0,4.61049967]
[1750072693277,0.1912,2607.1,2607.0,4.64885136]
[1750072693906,0.1912,2607.1,2607.0,13.70600877]
[1750072694904,0.1912,2607.1,2607.0,4.61049967]
[1750072695503,0.1912,2607.1,2607.0,6.32349967]
[1750072695671,0.1912,2607.1,2607.0,6.36184981]
[1750072696326,0.1912,2607.1,2607.0,6.32349967]
[1750072696618,0.1912,2607.1,2607.0,6.36184984]
[1750072697226,0.1912,2607.1,2607.0,6.32349967]
[1750072698505,0.8123,2608.1,2608.0,3.83435582]
[1750072698668,16.76052178,2608.1,2608.0,3.83435582]
[1750072698870,9.47176676,2608.1,2608.0,3.83435582]
[1750072699065,6.407,2608.1,2608.0,3.83435582]
[1750072699967,6.406,2608.3,2608.2,3.83403427]
[1750072700570,0.8101,2608.8,2608.7,3.83332694]
[1750072700766,0.02,2608.9,2608.8,3.83318]
[1750072700998,16.77864162,2608.9,2608.8,3.83318]
[1750072701310,9.08576759,2608.9,2608.8,3.83318]
[1750072701515,6.425,2608.9,2608.8,3.83318]
[1750072703316,6.77866188,2608.9,2608.8,3.83318]
[1750072703470,0.37366188,2608.9,2608.8,3.83318]
[1750072703677,6.77366153,2608.9,2608.8,3.83318]
[1750072703872,6.42,2608.9,2608.8,3.83318]
[1750072704077,6.77366119,2608.9,2608.8,3.83318]
[1750072704307,6.42,2608.9,2608.8,3.83318]
[1750072704503,6.77366117,2608.9,2608.8,3.83318]
[1750072704691,6.42,2608.9,2608.8,3.83318]
[1750072705088,18.23546934,2608.9,2608.8,3.83318]
[1750072705312,19.13736277,2608.9,2608.8,3.83318]
[1750072706085,18.23546934,2608.9,2608.8,3.83318]
[1750072706292,16.42,2608.9,2608.8,3.83318]
[1750072707018,16.414,2608.9,2608.8,3.83318]
[1750072709582,16.408,2608.9,2608.8,3.83318]
[1750072714931,16.401,2608.9,2608.8,3.83318]
[1750072715631,0.02,2608.9,2608.8,11.39164617]
[1750072715930,0.35068858,2610.1,2609.8,4.63721124]
[1750072716093,0.7773,2610.7,2609.8,4.67551948]
[1750072716293,12.33913707,2610.4,2609.8,3.83171124]
[1750072716489,6.515,2610.0,2609.8,3.83171124]
[1750072716838,0.7773,2610.7,2609.8,3.87002416]
[1750072717038,0.1912,2610.0,2609.8,6.43761427]
[1750072717193,6.52,2610.6,2609.8,6.43761427]
[1750072717398,0.02,2610.9,2609.8,18.93564831]
[1750072717601,0.02,2610.9,2609.8,4.81951124]
[1750072717822,0.1912,2610.3,2609.8,6.59051124]
[1750072718151,0.1912,2610.3,2609.8,6.62881162]
[1750072718915,0.1912,2610.3,2609.8,15.70101646]
[1750072719115,0.1912,2610.3,2609.8,15.66271608]
[1750072720936,0.1912,2610.3,2609.8,22.18171608]
[1750072722111,0.1912,2610.3,2609.8,18.35000484]
[1750072722311,0.1912,2610.3,2609.8,22.18171608]
[1750072723052,0.1912,2610.3,2609.8,13.89171608]
[1750072723258,0.1912,2610.3,2609.8,22.17271608]
[1750072723422,0.1912,2610.3,2609.8,13.89171608]
[1750072723622,0.1912,2610.0,2609.8,21.97751608]
[1750072724355,0.1912,2610.0,2609.8,12.90531124]
[1750072724657,0.1912,2610.0,2609.8,21.97751608]
[1750072724860,0.1912,2610.0,2609.8,13.70051608]
[1750072725443,0.55,2610.7,2609.8,13.70051608]
[1750072726418,10.7921,2610.8,2609.8,13.70051608]
[1750072726617,0.2112,2609.9,2609.8,13.70051608]
[1750072727752,0.02,2609.9,2609.8,13.70051608]
[1750072734266,0.02,2609.9,2609.8,4.62831124]
[1750072734454,0.02,2609.9,2609.8,3.83171124]
[1750072736143,0.02,2609.9,2609.8,3.87001928]
[1750072736448,0.02,2609.9,2609.8,3.83171124]
[1750072742730,0.02,2609.9,2609.8,3.87001887]
[1750072743049,0.02,2609.9,2609.8,3.83171124]
[1750072744474,0.02,2609.9,2609.8,11.09331124]
[1750072745035,0.02,2609.9,2609.8,3.83171124]
[1750072746764,0.02,2609.9,2609.8,12.90391608]
[1750072752958,0.02,2609.9,2609.8,9.64823234]
[1750072756610,0.02,2609.9,2609.8,16.29465344]
[1750072757613,0.02,2609.9,2609.8,9.64823234]
[1750072758516,0.02,2609.9,2609.8,3.83171124]
[1750072760226,0.02,2609.9,2609.5,3.83213009]
[1750072760227,0.8001,2609.8,2609.5,3.8320299]
[1750072760428,1.6606638,2609.7,2609.6,3.8318929]
[1750072761404,1.6606638,2609.7,2609.5,3.83207967]
[1750072761608,0.75429863,2609.7,2609.6,3.8320049]
[1750072761841,1.6606638,2609.7,2609.6,3.8320049]
[1750072762340,1.6606638,2609.7,2609.5,3.83209708]
[1750072762518,0.88857638,2609.6,2609.5,3.83209708]
[1750072763605,0.88857638,2609.6,2608.9,5.8165211]
[1750072763812,0.8028,2609.5,2608.9,5.8165211]
[1750072764042,0.8028,2609.5,2608.9,3.83302224]
[1750072764314,0.8028,2609.5,2609.3,3.83242973]
[1750072764767,0.20451561,2609.4,2609.3,3.83242973]
[1750072765105,0.8028,2609.3,2608.6,3.83347389]
[1750072765408,0.8028,2609.3,2609.1,3.83267731]
[1750072765824,1.3528,2609.3,2609.2,3.83259236]
[1750072766014,13.21619697,2609.3,2609.2,3.83259236]
[1750072766331,0.55,2609.2,2609.1,3.83264252]
[1750072766740,0.90463061,2609.2,2609.1,3.83264252]
[1750072766948,0.90463061,2609.2,2609.0,3.83280082]
[1750072766949,0.90462976,2609.2,2609.0,3.83280082]
[1750072767134,6.77462973,2609.1,2609.0,3.83280082]
[1750072767330,6.42,2609.1,2609.0,3.83280082]
[1750072767547,10.1912,2609.0,2608.9,3.83290279]
[1750072767742,11.30182304,2609.0,2608.9,3.83290279]
[1750072767946,11.30180963,2609.0,2608.9,3.83290279]
[1750072768124,11.30180505,2609.0,2608.9,3.83290279]
[1750072768325,10.9472,2609.0,2608.9,3.83290279]
[1750072768720,11.30180346,2609.0,2608.9,3.83290279]
[1750072768920,13.69045065,2609.0,2608.9,3.83290279]
[1750072769346,13.69045065,2609.0,2608.4,5.8165211]
[1750072769347,14.04503727,2609.0,2608.2,5.8165211]
[1750072769565,13.49925065,2609.0,2608.3,3.83391481]
[1750072769860,0.35458385,2608.9,2608.8,3.83317938]
[1750072770043,12.13280907,2608.9,2608.8,3.83317938]
[1750072770357,12.13280907,2608.9,2608.7,3.8333262]
[1750072770358,0.9891,2608.8,2608.7,3.83332694]
[1750072770835,0.1912,2608.8,2608.7,9.64984804]
[1750072771035,6.6052,2608.8,2608.7,9.64984804]
[1750072771656,0.1912,2608.8,2608.7,9.64984804]
[1750072772062,0.1912,2608.8,2608.7,3.83332694]
[1750072775526,0.1912,2608.8,2608.7,3.87165591]
[1750072775825,0.1912,2608.8,2608.7,3.87165411]
[1750072776552,0.1912,2608.8,2608.7,3.83332694]
[1750072777563,0.1912,2608.8,2608.7,4.64205104]
[1750072777864,0.1912,2608.8,2608.7,4.60372694]
[1750072782185,0.7528,2609.7,2609.6,3.8320049]
[1750072782372,11.46958,2609.7,2609.6,3.8320049]
[1750072783290,0.778,2609.9,2609.8,3.83171124]
[1750072783469,7.17,2609.9,2609.8,3.83171124]
[1750072783843,17.17,2609.9,2609.8,3.83171124]
[1750072784760,7.17,2609.9,2609.8,3.83171124]
[1750072785075,0.02,2609.9,2609.8,10.40603234]
[1750072791619,0.8263,2609.9,2609.8,3.83171124]
[1750072791939,8.29393,2609.9,2609.8,3.83171124]
[1750072794193,18.29393,2609.9,2609.8,3.83171124]
[1750072794394,19.19555677,2609.9,2609.8,3.83171124]
[1750072802838,10.1912,2609.8,2609.1,4.64660648]
[1750072803113,6.37,2609.7,2609.6,3.8320049]
[1750072803309,7.27162677,2609.7,2609.6,3.8320049]
[1750072804551,7.6258453,2609.7,2609.6,3.8320049]
[1750072804751,7.27162677,2609.7,2609.6,3.8320049]
[1750072804928,7.62584541,2609.7,2609.6,3.8320049]
[1750072805127,7.27162677,2609.7,2609.6,3.8320049]
[1750072805452,7.6258453,2609.7,2609.6,3.8320049]
[1750072805614,7.27162677,2609.7,2609.6,3.8320049]
[1750072806173,9.18968245,2609.7,2609.6,3.8320049]
[1750072806316,9.73968245,2609.7,2609.6,3.8320049]
[1750072806717,10.09390351,2609.7,2609.6,3.8320049]
[1750072806934,10.09390308,2609.7,2609.6,3.8320049]
[1750072807143,9.73968245,2609.7,2609.6,3.8320049]
[1750072808545,10.09390221,2609.7,2609.6,3.8320049]
[1750072808760,7.62584649,2609.7,2609.6,3.8320049]
[1750072808913,7.27162677,2609.7,2609.6,3.8320049]
[1750072810650,7.62585205,2609.7,2609.6,3.8320049]
[1750072810952,7.62584934,2609.7,2609.6,3.8320049]
[1750072811354,7.62584427,2609.7,2609.6,3.8320049]
[1750072811763,7.27162677,2609.7,2609.6,3.8320049]
[1750072812328,7.62585586,2609.7,2609.6,3.8320049]
[1750072812528,7.27162677,2609.7,2609.6,3.8320049]
[1750072812832,7.25762677,2609.7,2609.6,3.8320049]
[1750072813027,6.356,2609.7,2609.6,3.8320049]
[1750072814233,7.73962882,2609.7,2609.6,3.8320049]
[1750072816889,0.8307,2609.6,2609.5,3.83205134]
[1750072817067,12.47352677,2609.6,2609.5,3.83205134]
[1750072817385,12.82772841,2609.6,2609.4,3.83222341]
[1750072817552,2.28232677,2609.6,2609.5,3.83215175]
[1750072817753,8.63832677,2609.6,2609.5,3.83215175]
[1750072821562,17.25462677,2609.6,2609.5,3.83215175]
[1750072822377,17.60848874,2609.6,2609.5,3.83215175]
[1750072822606,17.60848814,2609.6,2609.5,3.83215175]
[1750072822908,17.25462677,2609.6,2609.5,3.83215175]
[1750072823460,17.60848681,2609.6,2609.5,3.83215175]
[1750072823789,16.353,2609.6,2609.5,3.83215175]
[1750072824398,16.70685736,2609.6,2609.5,3.83215175]
[1750072824574,17.25862445,2609.6,2609.5,3.83215175]
[1750072824963,19.41460425,2609.6,2609.5,3.83215175]
[1750072825273,19.61074689,2609.6,2609.5,3.83215175]
[1750072825486,10.1912,2609.5,2609.4,3.83223505]
[1750072825805,11.45067477,2609.5,2609.4,3.83223505]
[1750072826102,1.45067186,2609.5,2609.4,3.83223505]
[1750072826264,6.5362,2609.5,2609.4,3.83223505]
[1750072826582,17.44182445,2609.5,2609.4,3.83223505]
[1750072826794,1.45067049,2609.5,2609.4,3.83223505]
[1750072826993,6.5372,2609.5,2609.4,3.83223505]
[1750072827389,7.44282445,2609.5,2609.4,3.83223505]
[1750072827589,0.1912,2609.5,2609.4,3.83223505]
[1750072827810,6.5352,2609.5,2609.4,9.64875615]
[1750072829071,6.5352,2609.5,2609.4,3.83223505]
[1750072832010,7.44082445,2609.5,2609.4,3.83223505]
[1750072832213,7.36057245,2609.5,2609.4,3.83223505]
[1750072832524,8.2661969,2609.5,2609.4,3.83223505]
[1750072832698,7.36057245,2609.5,2609.4,3.83223505]
[1750072832882,7.44082445,2609.5,2609.4,3.83223505]
[1750072833079,6.5352,2609.5,2609.4,3.83223505]
[1750072833283,7.44082445,2609.5,2609.4,3.83223505]
[1750072833525,6.5352,2609.5,2609.4,3.83223505]
[1750072833725,7.44082445,2609.5,2609.4,3.83223505]
[1750072834020,6.5352,2609.5,2609.4,3.83223505]
[1750072834226,7.44082445,2609.5,2609.4,3.83223505]
[1750072834525,6.5352,2609.5,2609.4,3.83223505]
[1750072834696,7.44082445,2609.5,2609.4,3.83223505]
[1750072834903,6.5352,2609.5,2609.4,3.83223505]
[1750072835116,7.44082445,2609.5,2609.4,3.83223505]
[1750072835327,6.5352,2609.5,2609.4,3.83223505]
[1750072835627,7.44082445,2609.5,2609.4,3.83223505]
[1750072835783,6.5352,2609.5,2609.4,3.83223505]
[1750072835990,7.44082445,2609.5,2609.4,3.83223505]
[1750072836200,6.5352,2609.5,2609.4,3.83223505]
[1750072836523,7.44082445,2609.5,2609.4,3.83223505]
[1750072836735,6.5352,2609.5,2609.4,3.83223505]
[1750072836932,7.44082445,2609.5,2609.4,3.83223505]
[1750072837234,0.1912,2609.5,2609.4,3.83223505]
[1750072837394,6.5222,2609.5,2609.4,4.60813505]
[1750072837924,0.1912,2609.5,2609.4,4.60813505]
[1750072838126,0.1912,2609.5,2609.4,4.64645306]
[1750072838332,0.1912,2609.5,2609.4,4.60813505]
[1750072839295,6.5272,2609.5,2609.4,3.83223505]
[1750072840000,0.823,2609.4,2609.3,3.83237924]
[1750072840349,1.72862445,2609.4,2609.2,3.83251798]
[1750072840730,1.72862445,2609.4,2609.1,3.83269127]
[1750072841035,0.90562445,2609.3,2609.1,3.83269127]
[1750072841190,0.90562445,2609.2,2609.1,3.83269127]
[1750072841397,0.90562445,2609.3,2609.2,3.83259236]
[1750072841597,7.24162445,2609.3,2609.1,3.83269357]
[1750072842036,10.90562445,2609.2,2609.1,3.83269357]
[1750072842237,11.2594847,2609.2,2609.1,3.83269357]
[1750072842410,11.25948347,2609.2,2608.7,3.83332694]
[1750072842615,0.1912,2609.0,2608.9,3.83303307]
[1750072842827,10.90562445,2609.2,2608.9,3.83303307]
[1750072843142,10.90562445,2609.2,2609.1,3.83273925]
[1750072843636,11.25949222,2609.2,2609.1,3.83273925]
[1750072843850,13.51977367,2609.2,2609.0,3.83286137]
[1750072844133,0.54505153,2609.1,2609.0,3.83286137]
[1750072844310,0.1912,2609.1,2608.7,3.83332694]
[1750072844641,0.1912,2608.8,2608.7,3.83332694]
[1750072847637,0.1912,2608.8,2608.7,4.62942694]
[1750072850741,0.1912,2608.8,2608.7,4.66775337]
[1750072851268,0.1912,2608.8,2608.7,4.62942694]
[1750072859159,0.1912,2608.8,2608.7,4.66774894]
[1750072860159,16.313,2609.6,2609.5,3.83215175]
[1750072860360,17.21862445,2609.6,2609.5,3.83215175]
[1750072860537,17.57191822,2609.6,2609.5,3.83215175]
[1750072860921,17.21862445,2609.6,2609.5,3.83215175]
[1750072861119,17.57206564,2609.6,2609.5,3.83215175]
[1750072861362,17.21862445,2609.6,2609.5,3.83215175]
[1750072861563,17.57208066,2609.6,2609.5,3.83215175]
[1750072861863,17.21862445,2609.6,2609.5,3.83215175]
[1750072862239,17.57202677,2609.6,2609.5,3.83215175]
[1750072862540,17.57198242,2609.6,2609.5,3.83215175]
[1750072862737,17.57197881,2609.6,2609.5,3.83215175]
[1750072862936,17.57198585,2609.6,2609.5,3.83215175]
[1750072863126,17.21862445,2609.6,2609.5,3.83215175]
[1750072863327,17.57198441,2609.6,2609.5,3.83215175]
[1750072863538,17.21862445,2609.6,2609.5,3.83215175]
[1750072863745,17.57197783,2609.6,2609.5,3.83215175]
[1750072864063,17.21862445,2609.6,2609.5,3.83215175]
[1750072864426,17.57197732,2609.6,2609.5,3.83215175]
[1750072864626,17.21862445,2609.6,2609.5,3.83215175]
[1750072865972,17.57200043,2609.6,2609.5,3.83215175]
[1750072866275,17.21862445,2609.6,2609.5,3.83215175]
[1750072866976,7.56500112,2609.6,2609.5,3.83215175]
[1750072867172,6.306,2609.6,2609.5,3.83215175]
[1750072867375,16.306,2609.6,2609.5,3.83215175]
[1750072867871,17.21162445,2609.6,2609.5,3.83215175]
[1750072868660,0.90562445,2609.6,2609.5,3.87047062]
[1750072868853,6.6587635,2609.7,2609.6,3.8320049]
[1750072869352,0.3527635,2609.7,2609.6,9.648526]
[1750072869558,0.3527635,2609.7,2609.6,10.467626]
[1750072870550,0.5439635,2609.7,2609.6,10.467626]
[1750072871050,0.3527635,2609.7,2609.6,10.467626]
[1750072879856,0.3527635,2609.7,2609.6,18.420626]
[1750072890108,0.3527635,2609.7,2609.6,12.6041049]
[1750072891337,0.3527635,2609.7,2609.6,3.8320049]
[1750072891537,0.8045,2609.6,2608.6,3.83347389]
[1750072891691,0.8045,2609.4,2609.3,3.83241718]
[1750072891897,6.6210211,2609.4,2609.3,3.83241718]
[1750072892531,0.8045,2609.3,2609.2,3.83253612]
[1750072896438,7.1085,2609.3,2609.2,3.83253612]
[1750072899268,0.8045,2609.3,2609.2,3.83253612]
[1750072899545,7.1095,2609.3,2609.2,3.83253612]
[1750072905660,0.7762,2609.0,2608.2,6.57168373]
[1750072905860,5.8165211,2608.6,2608.4,3.83368006]
[1750072906163,7.0812,2608.5,2608.3,3.83383861]
[1750072906455,10.0,2608.4,2608.3,3.83391481]
[1750072906639,13.19090271,2608.4,2608.3,3.83391481]
[1750072906953,12.28977211,2608.4,2608.3,3.83391481]
[1750072908055,0.7762,2608.3,2607.5,3.83503709]
[1750072908262,0.7762,2608.3,2608.2,3.8340618]
[1750072911523,7.0822,2608.3,2608.2,3.8340618]
[1750072913533,8.01422,2608.3,2608.0,3.83424935]
[1750072913761,16.6387211,2608.2,2608.1,3.83420881]
[1750072913958,16.6387211,2608.2,2607.9,3.83446194]
[1750072913959,10.0,2608.1,2607.9,3.83446194]
[1750072914162,6.6387211,2608.2,2607.9,3.83446194]
[1750072914163,7.1257,2608.0,2607.9,3.83446194]
[1750072916362,0.55,2608.5,2608.3,3.8338434]
[1750072916564,17.362,2608.4,2608.3,3.8338434]
[1750072916787,18.1895,2608.4,2608.3,3.8338434]
[1750072917263,18.1895,2608.4,2608.2,3.83397488]
[1750072917842,10.9993,2608.2,2608.1,3.8341212]
[1750072918086,10.9993,2608.2,2608.0,3.83427736]
[1750072918292,17.98858211,2608.1,2608.0,3.83424571]
[1750072919194,10.0,2608.1,2608.0,3.83424571]
[1750072919353,16.307,2608.1,2608.0,3.83424571]
[1750072921954,1.055,2608.4,2608.1,3.83420881]
[1750072922278,0.7538,2608.5,2608.4,3.83376782]
[1750072922600,0.7538,2608.7,2608.6,3.83347389]
[1750072922787,7.0618,2608.7,2608.6,3.83347389]
[1750072923152,6.66180745,2608.7,2608.6,3.83347389]
[1750072923388,6.308,2608.7,2608.6,3.83347389]
[1750072923708,0.7778,2608.9,2608.8,3.83318]
[1750072923857,7.32858,2608.9,2608.8,3.83318]
[1750072924356,17.32858,2608.9,2608.8,3.83318]
[1750072924579,18.22909302,2608.9,2608.8,3.83318]
[1750072925594,18.34017313,2608.9,2608.8,3.83318]
[1750072925762,17.98631302,2608.9,2608.8,3.83318]
[1750072925963,10.0,2608.8,2608.1,3.83407227]
[1750072926159,10.0,2608.8,2607.9,4.60869455]
[1750072926160,12.1235211,2608.7,2608.6,3.83340557]
[1750072926391,13.85764977,2608.7,2608.6,3.83340557]
[1750072926697,13.85764786,2608.7,2608.6,3.83340557]
[1750072926860,13.85764823,2608.7,2608.6,3.83340557]
[1750072927064,13.85764823,2608.7,2607.9,4.60869455]
[1750072927065,10.7912,2608.6,2608.3,3.83378265]
[1750072927265,10.0,2608.4,2608.3,3.83378265]
[1750072927562,11.2553113,2608.4,2608.3,3.83378265]
[1750072927767,10.90151302,2608.4,2608.3,3.83378265]
[1750072927965,11.25531092,2608.4,2608.3,3.83378265]
[1750072928166,16.66080308,2608.4,2608.3,3.83378265]
[1750072928490,17.20918687,2608.4,2608.3,3.83378265]
[1750072928910,19.00922556,2608.4,2608.3,3.83378265]
[1750072929066,12.70222556,2608.4,2608.3,3.83378265]
[1750072929266,16.66080243,2608.4,2608.3,3.83378265]
[1750072929507,17.20918687,2608.4,2608.3,3.83378265]
[1750072929883,17.56298097,2608.4,2608.3,3.83378265]
[1750072930068,17.20918687,2608.4,2608.3,3.83378265]
[1750072930267,17.56297936,2608.4,2608.3,3.83378265]
[1750072930471,17.56298141,2608.4,2608.3,3.83378265]
[1750072930766,17.56298123,2608.4,2608.3,3.83378265]
[1750072930966,17.20918687,2608.4,2608.3,3.83378265]
[1750072931166,17.56298612,2608.4,2608.3,3.83378265]
[1750072931408,7.20918687,2608.4,2608.3,3.83378265]
[1750072931712,10.0,2608.4,2608.3,3.83378265]
[1750072931870,16.307,2608.4,2608.3,3.83378265]
[1750072932070,6.307,2608.4,2608.3,3.83378265]
[1750072932573,0.1912,2608.3,2608.2,3.83402043]
[1750072933078,0.55,2608.2,2607.4,0.8044]
[1750072933405,6.66077587,2608.1,2608.0,3.83435582]
[1750072933610,6.66076983,2608.1,2608.0,3.83435582]
[1750072933816,6.66077121,2608.1,2608.0,3.83435582]
[1750072933968,16.66077121,2608.1,2608.0,3.83435582]
[1750072934169,19.74274679,2608.1,2608.0,3.83435582]
[1750072934583,20.09650671,2608.1,2608.0,3.83435582]
[1750072934809,19.74274679,2608.1,2608.0,3.83435582]
[1750072935507,20.09649996,2608.1,2608.0,3.83435582]
[1750072935718,19.74274679,2608.1,2607.9,3.83437566]
[1750072935874,1.25593773,2608.0,2607.9,3.83437566]
[1750072936210,0.90218687,2608.0,2607.9,3.83437566]
[1750072936504,1.25593866,2608.0,2607.9,3.83437566]
[1750072936705,1.25593865,2608.0,2607.9,3.83437566]
[1750072937012,0.90218687,2608.0,2607.9,3.83437566]